[Event "*** Qualifier 4: Titled Tuesday 3|2 Blitz"]
[Site "Chess.com"]
[Date "2017.04.25"]
[Round "10"]
[White "GMHess"]
[Black "AkshatChandra"]
[Result "0-1"]
[WhiteElo "2590"]
[BlackElo "2697"]
[TimeControl "180+2"]
[EndTime "15:14:09 PDT"]
[Termination "AkshatChandra won by resignation"]

1. e4 {[%clk 0:02:57.6]} 1... c5 {[%clk 0:02:54.1]} 2. Nf3 {[%clk 0:02:57.7]}
2... d6 {[%clk 0:02:55.5]} 3. Bb5+ {[%clk 0:02:57.9]} 3... Nd7 {[%clk
0:02:51.4]} 4. c3 {[%clk 0:02:57.3]} 4... Nf6 {[%clk 0:02:52.3]} 5. Qe2 {[%clk
0:02:57.9]} 5... a6 {[%clk 0:02:53.7]} 6. Ba4 {[%clk 0:02:58.5]} 6... e6 {[%clk
0:02:50.5]} 7. O-O {[%clk 0:02:55.2]} 7... b5 {[%clk 0:02:51.4]} 8. Bc2 {[%clk
0:02:55.1]} 8... Bb7 {[%clk 0:02:52.6]} 9. a4 {[%clk 0:02:42.1]} 9... Be7 {[%clk
0:02:52.4]} 10. d4 {[%clk 0:02:20]} 10... O-O {[%clk 0:02:42.5]} 11. Bg5 {[%clk
0:01:57.2]} 11... Re8 {[%clk 0:02:34.5]} 12. Nbd2 {[%clk 0:01:18.3]} 12... h6
{[%clk 0:02:04]} 13. Bxf6 {[%clk 0:01:02.8]} 13... Bxf6 {[%clk 0:01:55.1]} 14.
axb5 {[%clk 0:01:01.2]} 14... axb5 {[%clk 0:01:51.3]} 15. Qxb5 {[%clk
0:01:02.1]} 15... Qc7 {[%clk 0:01:49.1]} 16. Qd3 {[%clk 0:00:39.3]} 16... g6
{[%clk 0:01:38.8]} 17. h4 {[%clk 0:00:27.6]} 17... h5 {[%clk 0:01:20.5]} 18.
Rfb1 {[%clk 0:00:19.6]} 18... Reb8 {[%clk 0:01:08.4]} 19. Ba4 {[%clk 0:00:11.5]}
19... Ba6 {[%clk 0:01:05.2]} 20. Qe3 {[%clk 0:00:10.7]} 20... Nb6 {[%clk
0:01:06.2]} 21. Bd1 {[%clk 0:00:08.5]} 21... Nc4 {[%clk 0:01:00]} 22. Nxc4
{[%clk 0:00:09.2]} 22... Bxc4 {[%clk 0:01:01.9]} 23. b3 {[%clk 0:00:07.7]} 23...
Rxa1 {[%clk 0:00:57.1]} 24. Rxa1 {[%clk 0:00:09.6]} 24... Bxb3 {[%clk
0:00:53.8]} 25. Bxb3 {[%clk 0:00:10.2]} 25... Rxb3 {[%clk 0:00:55.7]} 26. e5
{[%clk 0:00:11.1]} 26... Be7 {[%clk 0:00:50.8]} 27. exd6 {[%clk 0:00:07.2]}
27... Bxd6 {[%clk 0:00:46.5]} 28. Qe4 {[%clk 0:00:03.6]} 28... Rxc3 {[%clk
0:00:37.9]} 29. Ng5 {[%clk 0:00:04.5]} 29... cxd4 {[%clk 0:00:31.4]} 30. Ra8+
{[%clk 0:00:05.3]} 30... Kg7 {[%clk 0:00:24.5]} 31. g3 {[%clk 0:00:03.8]} 31...
d3 {[%clk 0:00:21]} 32. Qd4+ {[%clk 0:00:02.8]} 32... e5 {[%clk 0:00:09.6]} 33.
Qd5 {[%clk 0:00:02.1]} 33... Rc1+ {[%clk 0:00:10.2]} 34. Kg2 {[%clk 0:00:03]}
34... Qc6 {[%clk 0:00:10.8]} 35. Qxc6 {[%clk 0:00:04.3]} 35... Rxc6 {[%clk
0:00:12.7]} 36. Ra7 {[%clk 0:00:03.9]} 36... d2 {[%clk 0:00:10.5]} 37. Nxf7
{[%clk 0:00:03.6]} 37... Kf8 {[%clk 0:00:07.5]} 38. Ng5 {[%clk 0:00:02.7]} 38...
d1=Q {[%clk 0:00:08.2]} 39. Ra8+ {[%clk 0:00:03.6]} 39... Ke7 {[%clk 0:00:08.9]}
40. Ra7+ {[%clk 0:00:04.8]} 40... Rc7 {[%clk 0:00:10.5]} 0-1

[Event "*** Qualifier 4: Titled Tuesday 3|2 Blitz"]
[Site "Chess.com"]
[Date "2017.04.25"]
[Round "10"]
[White "theprosecution1"]
[Black "severomorskij"]
[Result "0-1"]
[WhiteElo "2602"]
[BlackElo "2677"]
[TimeControl "180+2"]
[EndTime "15:14:18 PDT"]
[Termination "severomorskij won by resignation"]

1. e4 {[%clk 0:03:02]} 1... c5 {[%clk 0:03:00.1]} 2. Nf3 {[%clk 0:03:01.6]} 2...
Nc6 {[%clk 0:03:01.2]} 3. Bb5 {[%clk 0:02:52.4]} 3... e6 {[%clk 0:03:01.8]} 4.
O-O {[%clk 0:02:53]} 4... Nge7 {[%clk 0:03:02.3]} 5. Re1 {[%clk 0:02:54.3]} 5...
Ng6 {[%clk 0:02:57.4]} 6. c3 {[%clk 0:02:50.4]} 6... d5 {[%clk 0:02:56.7]} 7. e5
{[%clk 0:02:36.1]} 7... Bd7 {[%clk 0:02:52.8]} 8. Bf1 {[%clk 0:02:33.1]} 8... d4
{[%clk 0:02:47.2]} 9. Bd3 {[%clk 0:02:26.2]} 9... Qc7 {[%clk 0:02:43.4]} 10. Qe2
{[%clk 0:02:25.7]} 10... Nf4 {[%clk 0:02:40.2]} 11. Qf1 {[%clk 0:02:24.4]} 11...
g5 {[%clk 0:02:12.3]} 12. Be4 {[%clk 0:01:06.5]} 12... g4 {[%clk 0:01:28]} 13.
d3 {[%clk 0:01:07.7]} 13... Bh6 {[%clk 0:01:19.1]} 14. Nfd2 {[%clk 0:00:30.4]}
14... Nxe5 {[%clk 0:01:13.3]} 15. cxd4 {[%clk 0:00:31.8]} 15... cxd4 {[%clk
0:01:11.4]} 16. Na3 {[%clk 0:00:33.3]} 16... O-O-O {[%clk 0:00:48.1]} 17. Ndc4
{[%clk 0:00:33.9]} 17... Nxc4 {[%clk 0:00:48.4]} 18. dxc4 {[%clk 0:00:15.2]}
18... f5 {[%clk 0:00:48.2]} 19. Bd3 {[%clk 0:00:16.3]} 19... Kb8 {[%clk
0:00:45.9]} 20. Nc2 {[%clk 0:00:17.3]} 20... e5 {[%clk 0:00:42.3]} 21. Nb4
{[%clk 0:00:18.2]} 21... Nxd3 {[%clk 0:00:30.2]} 22. Qxd3 {[%clk 0:00:18.3]}
22... Bxc1 {[%clk 0:00:28]} 23. Raxc1 {[%clk 0:00:19.3]} 23... Be6 {[%clk
0:00:28.3]} 24. b3 {[%clk 0:00:20]} 24... e4 {[%clk 0:00:28.6]} 25. Qd2 {[%clk
0:00:20.5]} 25... Qe5 {[%clk 0:00:24.8]} 26. a4 {[%clk 0:00:21]} 26... f4 {[%clk
0:00:22.8]} 27. a5 {[%clk 0:00:22.2]} 27... e3 {[%clk 0:00:20.6]} 28. fxe3
{[%clk 0:00:24.1]} 28... dxe3 {[%clk 0:00:20.6]} 29. Qc3 {[%clk 0:00:20.6]}
29... Qxc3 {[%clk 0:00:18.3]} 30. Rxc3 {[%clk 0:00:22.5]} 30... Rd2 {[%clk
0:00:19.1]} 31. g3 {[%clk 0:00:19.6]} 31... f3 {[%clk 0:00:13.9]} 32. Rexe3
{[%clk 0:00:20.4]} 32... Rg2+ {[%clk 0:00:13.1]} 33. Kf1 {[%clk 0:00:20.9]}
33... Bf5 {[%clk 0:00:14.1]} 34. a6 {[%clk 0:00:17.5]} 34... Rd8 {[%clk
0:00:13.4]} 35. Nd5 {[%clk 0:00:18.1]} 35... Rxh2 {[%clk 0:00:10.7]} 36. axb7
{[%clk 0:00:16.1]} 36... Rh1+ {[%clk 0:00:08.5]} 37. Kf2 {[%clk 0:00:17.2]}
37... Rh2+ {[%clk 0:00:09.9]} 38. Kf1 {[%clk 0:00:18.1]} 38... h5 {[%clk
0:00:10.7]} 39. Re5 {[%clk 0:00:15.5]} 39... Bd7 {[%clk 0:00:09.2]} 40. Rce3
{[%clk 0:00:14.5]} 40... Bc6 {[%clk 0:00:09.1]} 41. Rf5 {[%clk 0:00:08.7]} 41...
Bxb7 {[%clk 0:00:09.3]} 42. Kg1 {[%clk 0:00:10.1]} 42... Rg2+ {[%clk 0:00:09.7]}
43. Kf1 {[%clk 0:00:10.6]} 43... Rxg3 {[%clk 0:00:11.3]} 44. Rxh5 {[%clk
0:00:10.6]} 44... Rg2 {[%clk 0:00:10.3]} 45. Rg5 {[%clk 0:00:11.1]} 45... Rxd5
{[%clk 0:00:08]} 46. cxd5 {[%clk 0:00:11.9]} 46... Ba6+ {[%clk 0:00:08.8]} 47.
Ke1 {[%clk 0:00:11]} 47... f2+ {[%clk 0:00:10]} 0-1

[Event "*** Qualifier 4: Titled Tuesday 3|2 Blitz"]
[Site "Chess.com"]
[Date "2017.04.25"]
[Round "10"]
[White "WeiYi1999"]
[Black "amaidel"]
[Result "0-1"]
[WhiteElo "2079"]
[BlackElo "2382"]
[TimeControl "180+2"]
[EndTime "15:14:35 PDT"]
[Termination "amaidel won by resignation"]

1. e4 {[%clk 0:03:00]} 1... e6 {[%clk 0:03:00.1]} 2. d4 {[%clk 0:03:00.5]} 2...
d5 {[%clk 0:03:01.2]} 3. Nc3 {[%clk 0:03:02.4]} 3... Bb4 {[%clk 0:03:01.5]} 4.
exd5 {[%clk 0:03:01.8]} 4... exd5 {[%clk 0:03:01.4]} 5. Bd3 {[%clk 0:03:02.8]}
5... Nf6 {[%clk 0:03:02.3]} 6. Ne2 {[%clk 0:02:44]} 6... O-O {[%clk 0:03:02.2]}
7. Bf4 {[%clk 0:02:44.4]} 7... c5 {[%clk 0:02:59.3]} 8. dxc5 {[%clk 0:02:27.5]}
8... Nc6 {[%clk 0:02:59.6]} 9. a3 {[%clk 0:02:20.2]} 9... Bxc5 {[%clk
0:02:57.6]} 10. Qd2 {[%clk 0:02:21.4]} 10... d4 {[%clk 0:02:47.1]} 11. Ne4
{[%clk 0:02:20.1]} 11... Nxe4 {[%clk 0:02:47.5]} 12. Bxe4 {[%clk 0:02:22]} 12...
Re8 {[%clk 0:02:47.6]} 13. Bd3 {[%clk 0:02:17.7]} 13... Bg4 {[%clk 0:02:38.3]}
14. f3 {[%clk 0:02:13.6]} 14... Bh5 {[%clk 0:02:38.3]} 15. g4 {[%clk 0:02:10.7]}
15... Bg6 {[%clk 0:02:38.8]} 16. h4 {[%clk 0:02:12.6]} 16... Bxd3 {[%clk
0:02:36.7]} 17. Qxd3 {[%clk 0:02:14.5]} 17... Ne5 {[%clk 0:02:32.9]} 18. Bxe5
{[%clk 0:02:12.1]} 18... Rxe5 {[%clk 0:02:33.3]} 19. O-O-O {[%clk 0:02:14]}
19... Rc8 {[%clk 0:02:23.1]} 20. Nxd4 {[%clk 0:02:10]} 20... Rd5 {[%clk
0:02:23.1]} 21. c3 {[%clk 0:02:11.1]} 21... Bxd4 {[%clk 0:02:08.8]} 22. Kb1
{[%clk 0:02:13]} 22... Qb6 {[%clk 0:01:59.8]} 23. cxd4 {[%clk 0:02:07.7]} 23...
Rcd8 {[%clk 0:01:45.9]} 24. Qc4 {[%clk 0:02:01.8]} 24... Rxd4 {[%clk 0:01:36.4]}
25. Rxd4 {[%clk 0:01:30.5]} 25... Rxd4 {[%clk 0:01:38.3]} 26. Qc8+ {[%clk
0:01:14.4]} 26... Rd8 {[%clk 0:01:38.1]} 27. Qc3 {[%clk 0:01:11.8]} 27... h6
{[%clk 0:01:32.9]} 28. g5 {[%clk 0:01:07.1]} 28... Qg6+ {[%clk 0:01:31.3]} 29.
Ka1 {[%clk 0:01:06]} 29... hxg5 {[%clk 0:01:29.8]} 30. hxg5 {[%clk 0:01:07.9]}
30... Qxg5 {[%clk 0:01:30.3]} 31. f4 {[%clk 0:01:04.8]} 31... Qxf4 {[%clk
0:01:12.2]} 32. Qh3 {[%clk 0:00:58.3]} 32... Qh6 {[%clk 0:01:10.1]} 33. Qg2
{[%clk 0:00:58.6]} 33... Qe6 {[%clk 0:00:43.2]} 34. Qxb7 {[%clk 0:00:36.5]}
34... Qd5 {[%clk 0:00:40]} 35. Qxd5 {[%clk 0:00:32.1]} 35... Rxd5 {[%clk
0:00:41.9]} 36. Kb1 {[%clk 0:00:31.7]} 36... f5 {[%clk 0:00:42.5]} 37. Kc2
{[%clk 0:00:30.6]} 37... Kf7 {[%clk 0:00:43.6]} 38. b4 {[%clk 0:00:32.5]} 38...
Kf6 {[%clk 0:00:43.9]} 39. Kc3 {[%clk 0:00:34.4]} 39... g5 {[%clk 0:00:39.2]}
40. Kc4 {[%clk 0:00:36.3]} 40... Rd7 {[%clk 0:00:39.7]} 41. a4 {[%clk
0:00:38.2]} 41... f4 {[%clk 0:00:40.3]} 42. b5 {[%clk 0:00:38.8]} 42... Kf5
{[%clk 0:00:39.1]} 43. a5 {[%clk 0:00:40.7]} 43... g4 {[%clk 0:00:39.5]} 44. b6
{[%clk 0:00:38.7]} 44... axb6 {[%clk 0:00:40]} 45. axb6 {[%clk 0:00:40.6]} 45...
f3 {[%clk 0:00:39.3]} 46. Kc5 {[%clk 0:00:39.8]} 46... Rb7 {[%clk 0:00:36.4]}
47. Kc6 {[%clk 0:00:40.7]} 47... Rb8 {[%clk 0:00:37.1]} 48. Kc7 {[%clk
0:00:32.5]} 48... Rxb6 {[%clk 0:00:36.8]} 49. Kxb6 {[%clk 0:00:34.4]} 49... g3
{[%clk 0:00:37.6]} 50. Rg1 {[%clk 0:00:19]} 50... g2 {[%clk 0:00:37.7]} 51. Kc5
{[%clk 0:00:18.5]} 51... Kf4 {[%clk 0:00:36.5]} 52. Kd4 {[%clk 0:00:19.4]} 52...
Kg3 {[%clk 0:00:36.2]} 53. Ke3 {[%clk 0:00:20.2]} 53... f2 {[%clk 0:00:37]} 0-1

[Event "*** Qualifier 4: Titled Tuesday 3|2 Blitz"]
[Site "Chess.com"]
[Date "2017.04.25"]
[Round "10"]
[White "Bugcrusher"]
[Black "arna"]
[Result "1-0"]
[WhiteElo "2440"]
[BlackElo "2074"]
[TimeControl "180+2"]
[EndTime "15:14:43 PDT"]
[Termination "Bugcrusher won on time"]

1. d4 {[%clk 0:03:02]} 1... e6 {[%clk 0:02:51.1]} 2. e4 {[%clk 0:03:02.4]} 2...
d6 {[%clk 0:02:51.5]} 3. Qe2 {[%clk 0:02:47.6]} 3... b6 {[%clk 0:02:48.4]} 4. g3
{[%clk 0:02:47.5]} 4... Bb7 {[%clk 0:02:38.7]} 5. Bg2 {[%clk 0:02:47.6]} 5... g6
{[%clk 0:02:40.1]} 6. c3 {[%clk 0:02:46.4]} 6... Bg7 {[%clk 0:02:41.5]} 7. h4
{[%clk 0:02:46.9]} 7... h6 {[%clk 0:02:40.7]} 8. h5 {[%clk 0:02:47.1]} 8... g5
{[%clk 0:02:41.3]} 9. Be3 {[%clk 0:02:44.2]} 9... Ne7 {[%clk 0:02:41]} 10. Nd2
{[%clk 0:02:44.3]} 10... Nd7 {[%clk 0:02:35.4]} 11. O-O-O {[%clk 0:02:39.2]}
11... a6 {[%clk 0:02:30]} 12. f4 {[%clk 0:02:38.4]} 12... gxf4 {[%clk
0:02:25.7]} 13. gxf4 {[%clk 0:02:38.7]} 13... f5 {[%clk 0:02:19.6]} 14. exf5
{[%clk 0:02:31.1]} 14... Bxg2 {[%clk 0:02:17.8]} 15. Qxg2 {[%clk 0:02:32.1]}
15... Nxf5 {[%clk 0:02:19.2]} 16. Bf2 {[%clk 0:02:23.6]} 16... O-O {[%clk
0:01:52.5]} 17. Ngf3 {[%clk 0:02:21]} 17... Kh8 {[%clk 0:01:48.5]} 18. Rde1
{[%clk 0:01:56.9]} 18... Qf6 {[%clk 0:01:46.1]} 19. Ne4 {[%clk 0:01:54.3]} 19...
Qf7 {[%clk 0:01:47.3]} 20. Kb1 {[%clk 0:01:43.7]} 20... Rae8 {[%clk 0:01:39.4]}
21. Nh4 {[%clk 0:01:31]} 21... Nxh4 {[%clk 0:01:30.5]} 22. Rxh4 {[%clk
0:01:31.7]} 22... Nf6 {[%clk 0:01:29.2]} 23. Nxf6 {[%clk 0:01:23.9]} 23... Qxf6
{[%clk 0:01:22]} 24. Rg4 {[%clk 0:01:25.8]} 24... Qf5+ {[%clk 0:01:13.3]} 25.
Ka1 {[%clk 0:01:23.9]} 25... Rg8 {[%clk 0:01:13.1]} 26. Rg1 {[%clk 0:01:16.7]}
26... Qf7 {[%clk 0:00:52.4]} 27. Rg6 {[%clk 0:01:16.3]} 27... Kh7 {[%clk
0:00:42.6]} 28. Be3 {[%clk 0:01:10.5]} 28... b5 {[%clk 0:00:18.5]} 29. Qg4
{[%clk 0:00:53]} 29... b4 {[%clk 0:00:18.1]} 30. cxb4 {[%clk 0:00:52.6]} 30...
c5 {[%clk 0:00:14.5]} 31. bxc5 {[%clk 0:00:52.1]} 31... dxc5 {[%clk 0:00:16.4]}
32. dxc5 {[%clk 0:00:52.7]} 32... Rb8 {[%clk 0:00:16.1]} 33. Rg2 {[%clk
0:00:36.6]} 33... Rbd8 {[%clk 0:00:05.6]} 34. Kb1 {[%clk 0:00:27.4]} 34... Rd3
{[%clk 0:00:06]} 35. Qxe6 {[%clk 0:00:19.2]} 35... Rd1+ {[%clk 0:00:03.2]} 36.
Kc2 {[%clk 0:00:19.8]} 36... Qd7 {[%clk 0:00:03.8]} 37. Qxd7 {[%clk 0:00:18.2]}
37... Rxd7 {[%clk 0:00:05.7]} 38. f5 {[%clk 0:00:18.1]} 38... Rf7 {[%clk
0:00:04.9]} 39. Bxh6 {[%clk 0:00:14.6]} 39... Bxh6 {[%clk 0:00:03.5]} 40. Rxg8
{[%clk 0:00:15.7]} 40... Rxf5 {[%clk 0:00:05.4]} 41. Rc8 {[%clk 0:00:14.1]}
41... Rxh5 {[%clk 0:00:05.5]} 42. b4 {[%clk 0:00:14.8]} 42... Rh4 {[%clk
0:00:05.1]} 43. Kb3 {[%clk 0:00:15.3]} 43... a5 {[%clk 0:00:04.5]} 44. bxa5
{[%clk 0:00:14.8]} 44... Be3 {[%clk 0:00:04.8]} 45. c6 {[%clk 0:00:15.2]} 45...
Rh5 {[%clk 0:00:05.8]} 46. Re2 {[%clk 0:00:15.5]} 46... Bc5 {[%clk 0:00:04.4]}
47. Kc4 {[%clk 0:00:15]} 47... Ba3 {[%clk 0:00:04.4]} 48. a6 {[%clk 0:00:15]}
48... Ra5 {[%clk 0:00:03.7]} 49. c7 {[%clk 0:00:14.6]} 49... Rc5+ {[%clk
0:00:02.3]} 50. Kb3 {[%clk 0:00:15.6]} 50... Bc1 {[%clk 0:00:03.9]} 51. Rc2
{[%clk 0:00:14.6]} 51... Rb5+ {[%clk 0:00:03.9]} 52. Ka4 {[%clk 0:00:15]} 52...
Rb6 {[%clk 0:00:02.8]} 53. Rb8 {[%clk 0:00:14.8]} 53... Rxa6+ {[%clk 0:00:03.8]}
54. Kb5 {[%clk 0:00:15.6]} 1-0

[Event "*** Qualifier 4: Titled Tuesday 3|2 Blitz"]
[Site "Chess.com"]
[Date "2017.04.25"]
[Round "10"]
[White "SerGo055"]
[Black "kreonx"]
[Result "1-0"]
[WhiteElo "2340"]
[BlackElo "2226"]
[TimeControl "180+2"]
[EndTime "15:15:22 PDT"]
[Termination "SerGo055 won by resignation"]

1. d4 {[%clk 0:02:58.2]} 1... f5 {[%clk 0:02:59.9]} 2. Nf3 {[%clk 0:02:59.8]}
2... Nf6 {[%clk 0:03:00.5]} 3. Bf4 {[%clk 0:02:56.9]} 3... e6 {[%clk 0:02:56.2]}
4. e3 {[%clk 0:02:57.6]} 4... d5 {[%clk 0:02:57.4]} 5. Bd3 {[%clk 0:02:57.8]}
5... Bd6 {[%clk 0:02:58.3]} 6. c4 {[%clk 0:02:53.1]} 6... Bxf4 {[%clk
0:02:52.4]} 7. exf4 {[%clk 0:02:54]} 7... dxc4 {[%clk 0:02:53.6]} 8. Bxc4 {[%clk
0:02:54.6]} 8... Nd5 {[%clk 0:02:55.1]} 9. g3 {[%clk 0:02:46.2]} 9... O-O {[%clk
0:02:51]} 10. O-O {[%clk 0:02:46.4]} 10... b6 {[%clk 0:02:52.2]} 11. Re1 {[%clk
0:02:40.1]} 11... Qd6 {[%clk 0:02:52.6]} 12. Nc3 {[%clk 0:02:36.3]} 12... Bb7
{[%clk 0:02:46]} 13. Ng5 {[%clk 0:02:35.2]} 13... Re8 {[%clk 0:02:43.2]} 14. Qh5
{[%clk 0:02:26]} 14... Nf6 {[%clk 0:02:39.4]} 15. Qf7+ {[%clk 0:02:25.1]} 15...
Kh8 {[%clk 0:02:39.7]} 16. Qxe8+ {[%clk 0:02:22.1]} 16... Nxe8 {[%clk
0:02:36.4]} 17. Nf7+ {[%clk 0:02:24]} 17... Kg8 {[%clk 0:02:36.6]} 18. Nxd6
{[%clk 0:02:24.2]} 18... Nxd6 {[%clk 0:02:37.6]} 19. Bxe6+ {[%clk 0:02:23.2]}
19... Kf8 {[%clk 0:02:38.5]} 20. Bd5 {[%clk 0:02:05.3]} 20... c6 {[%clk
0:02:34.5]} 21. Bf3 {[%clk 0:02:04.4]} 21... Na6 {[%clk 0:02:26.8]} 22. d5
{[%clk 0:02:00.2]} 22... cxd5 {[%clk 0:02:22.2]} 23. Bxd5 {[%clk 0:01:56.8]}
23... Nc5 {[%clk 0:02:17.4]} 24. b4 {[%clk 0:01:44]} 24... Nd3 {[%clk
0:02:18.3]} 25. Bxb7 {[%clk 0:01:42.1]} 25... Nxb7 {[%clk 0:02:19.3]} 26. Reb1
{[%clk 0:01:16.7]} 26... Rc8 {[%clk 0:02:18.8]} 27. Rb3 {[%clk 0:01:14]} 27...
a5 {[%clk 0:02:04.2]} 28. Nd5 {[%clk 0:01:09.5]} 28... Nc1 {[%clk 0:01:32.3]}
29. Rbb1 {[%clk 0:01:01]} 29... Ne2+ {[%clk 0:01:32.1]} 30. Kf1 {[%clk
0:01:01.7]} 30... Rc2 {[%clk 0:01:23.8]} 31. bxa5 {[%clk 0:00:38.7]} 31... Nxa5
{[%clk 0:01:21.2]} 32. Nb4 {[%clk 0:00:33.8]} 32... Rd2 {[%clk 0:01:17.1]} 33.
Rd1 {[%clk 0:00:33.6]} 33... Rb2 {[%clk 0:01:12.9]} 34. Rab1 {[%clk 0:00:32.5]}
34... Rxb1 {[%clk 0:01:07.9]} 35. Rxb1 {[%clk 0:00:33.4]} 35... Nc3 {[%clk
0:01:09.1]} 36. Rc1 {[%clk 0:00:34]} 36... Ne4 {[%clk 0:01:08.3]} 37. a4 {[%clk
0:00:32.6]} 37... Nc5 {[%clk 0:01:03.4]} 38. Nd5 {[%clk 0:00:30.8]} 38... Nxa4
{[%clk 0:01:00.1]} 39. Rb1 {[%clk 0:00:26.8]} 39... Nc4 {[%clk 0:00:57.1]} 40.
Rb4 {[%clk 0:00:26.7]} 40... Nab2 {[%clk 0:00:49.8]} 41. Nxb6 {[%clk 0:00:26.7]}
41... Nxb6 {[%clk 0:00:41.8]} 42. Rxb6 {[%clk 0:00:27.4]} 42... Nc4 {[%clk
0:00:42.9]} 43. Rb4 {[%clk 0:00:28.1]} 43... Nd6 {[%clk 0:00:42.2]} 44. Ke2
{[%clk 0:00:29.4]} 44... Kf7 {[%clk 0:00:33.9]} 45. f3 {[%clk 0:00:30.6]} 45...
Nc8 {[%clk 0:00:27.8]} 46. Kd3 {[%clk 0:00:31.1]} 46... Ne7 {[%clk 0:00:27.5]}
47. Rb5 {[%clk 0:00:29.2]} 47... Ke6 {[%clk 0:00:25]} 48. Kd4 {[%clk 0:00:29.3]}
48... Nc6+ {[%clk 0:00:24.9]} 49. Kc5 {[%clk 0:00:30.3]} 49... Ne7 {[%clk
0:00:24.9]} 50. Rb6+ {[%clk 0:00:31.7]} 50... Kf7 {[%clk 0:00:21.2]} 51. Rd6
{[%clk 0:00:33.1]} 51... g6 {[%clk 0:00:20.1]} 52. g4 {[%clk 0:00:29.3]} 52...
Ke8 {[%clk 0:00:17.7]} 53. Re6 {[%clk 0:00:21.3]} 53... Kf7 {[%clk 0:00:14.3]}
54. Rxe7+ {[%clk 0:00:21.2]} 54... Kxe7 {[%clk 0:00:14.9]} 55. gxf5 {[%clk
0:00:20.6]} 55... gxf5 {[%clk 0:00:15.6]} 56. Kd5 {[%clk 0:00:21.3]} 56... Kf6
{[%clk 0:00:16.2]} 57. Kd6 {[%clk 0:00:20.2]} 57... Kg6 {[%clk 0:00:16.1]} 58.
Ke6 {[%clk 0:00:20.5]} 58... h6 {[%clk 0:00:16.8]} 59. Ke5 {[%clk 0:00:18.2]}
59... Kh5 {[%clk 0:00:18]} 60. Kxf5 {[%clk 0:00:19.2]} 60... Kh4 {[%clk
0:00:19.6]} 61. Kg6 {[%clk 0:00:20.3]} 61... h5 {[%clk 0:00:19.8]} 62. f5 {[%clk
0:00:20.5]} 62... Kh3 {[%clk 0:00:21.4]} 63. Kxh5 {[%clk 0:00:21.4]} 1-0

[Event "*** Qualifier 4: Titled Tuesday 3|2 Blitz"]
[Site "Chess.com"]
[Date "2017.04.25"]
[Round "10"]
[White "LonesomeGeorge1"]
[Black "djano"]
[Result "1/2-1/2"]
[WhiteElo "2218"]
[BlackElo "2399"]
[TimeControl "180+2"]
[EndTime "15:15:35 PDT"]
[Termination "Game drawn - insufficient material"]

1. e4 {[%clk 0:03:02]} 1... e6 {[%clk 0:03:02]} 2. Nf3 {[%clk 0:03:02.1]} 2...
d5 {[%clk 0:03:02.4]} 3. e5 {[%clk 0:03:03.5]} 3... c5 {[%clk 0:03:03.4]} 4. b4
{[%clk 0:03:04.9]} 4... d4 {[%clk 0:03:03.1]} 5. bxc5 {[%clk 0:03:02.7]} 5...
Bxc5 {[%clk 0:03:04]} 6. Bd3 {[%clk 0:02:48.8]} 6... Nc6 {[%clk 0:03:02.5]} 7.
O-O {[%clk 0:02:49.7]} 7... Nge7 {[%clk 0:03:01.6]} 8. Ba3 {[%clk 0:02:42.9]}
8... b6 {[%clk 0:02:53.8]} 9. Bxc5 {[%clk 0:02:40.4]} 9... bxc5 {[%clk
0:02:55.7]} 10. Na3 {[%clk 0:02:41.9]} 10... Ng6 {[%clk 0:02:51.7]} 11. Nc4
{[%clk 0:02:41.8]} 11... O-O {[%clk 0:02:50.5]} 12. Re1 {[%clk 0:02:40.8]} 12...
Ba6 {[%clk 0:02:46.7]} 13. a3 {[%clk 0:02:34]} 13... Rb8 {[%clk 0:02:46.1]} 14.
Qe2 {[%clk 0:02:34]} 14... Qe7 {[%clk 0:02:33.7]} 15. Qe4 {[%clk 0:02:30.3]}
15... Bb7 {[%clk 0:02:29.3]} 16. Qg4 {[%clk 0:02:26.6]} 16... f5 {[%clk
0:02:20.5]} 17. exf6 {[%clk 0:02:26.5]} 17... Rxf6 {[%clk 0:02:21.7]} 18. Nfe5
{[%clk 0:02:07.3]} 18... Ngxe5 {[%clk 0:02:13.7]} 19. Nxe5 {[%clk 0:02:09.2]}
19... Rbf8 {[%clk 0:02:13.3]} 20. f3 {[%clk 0:02:00.9]} 20... Nd8 {[%clk
0:01:58.4]} 21. Rab1 {[%clk 0:01:55.9]} 21... Qc7 {[%clk 0:01:55.3]} 22. Bc4
{[%clk 0:01:30.8]} 22... Bd5 {[%clk 0:01:53.9]} 23. d3 {[%clk 0:01:27.1]} 23...
Qd6 {[%clk 0:01:37.3]} 24. Rb2 {[%clk 0:01:09.7]} 24... Nf7 {[%clk 0:01:29.8]}
25. Nxf7 {[%clk 0:01:04.8]} 25... R6xf7 {[%clk 0:01:29.2]} 26. Rxe6 {[%clk
0:01:01.1]} 26... Qd8 {[%clk 0:01:10.7]} 27. Bxd5 {[%clk 0:00:52.8]} 27... Qxd5
{[%clk 0:01:12.6]} 28. Re4 {[%clk 0:00:48.1]} 28... h5 {[%clk 0:01:11.4]} 29.
Qg3 {[%clk 0:00:45.6]} 29... Rb7 {[%clk 0:00:59.1]} 30. Rxb7 {[%clk 0:00:44.2]}
30... Qxb7 {[%clk 0:01:01]} 31. h4 {[%clk 0:00:29.2]} 31... Qb1+ {[%clk
0:01:00.8]} 32. Kh2 {[%clk 0:00:30.2]} 32... Qb7 {[%clk 0:00:50.4]} 33. Qg5
{[%clk 0:00:24.2]} 33... Qb8+ {[%clk 0:00:48.5]} 34. Qe5 {[%clk 0:00:22.2]}
34... Qb6 {[%clk 0:00:43.1]} 35. Qe6+ {[%clk 0:00:22.4]} 35... Kh7 {[%clk
0:00:44.1]} 36. Qxb6 {[%clk 0:00:22]} 36... axb6 {[%clk 0:00:46]} 37. Re6 {[%clk
0:00:23.5]} 37... Ra8 {[%clk 0:00:46.7]} 38. Rxb6 {[%clk 0:00:24.1]} 38... Rxa3
{[%clk 0:00:48.2]} 39. Rb3 {[%clk 0:00:20.1]} 39... Ra2 {[%clk 0:00:47.4]} 40.
c3 {[%clk 0:00:21.2]} 40... Rd2 {[%clk 0:00:40.3]} 41. c4 {[%clk 0:00:17.2]}
41... Kg6 {[%clk 0:00:37.1]} 42. Kg3 {[%clk 0:00:18.5]} 42... Kf6 {[%clk
0:00:35.3]} 43. Rb5 {[%clk 0:00:17.3]} 43... Rxd3 {[%clk 0:00:35.1]} 44. Rxc5
{[%clk 0:00:18.5]} 44... g6 {[%clk 0:00:36.6]} 45. Kf4 {[%clk 0:00:18.3]} 45...
Rd2 {[%clk 0:00:37.4]} 46. Rc6+ {[%clk 0:00:17.8]} 46... Kf7 {[%clk 0:00:36.8]}
47. g4 {[%clk 0:00:18.6]} 47... hxg4 {[%clk 0:00:38.7]} 48. fxg4 {[%clk
0:00:20.5]} 48... d3 {[%clk 0:00:38.8]} 49. Kg5 {[%clk 0:00:20.9]} 49... Rc2
{[%clk 0:00:36.4]} 50. Rc7+ {[%clk 0:00:20.7]} 50... Ke6 {[%clk 0:00:35.9]} 51.
Rc8 {[%clk 0:00:16.2]} 51... Ke5 {[%clk 0:00:21.4]} 52. Rd8 {[%clk 0:00:16.6]}
52... Ke4 {[%clk 0:00:20.5]} 53. Kxg6 {[%clk 0:00:18]} 53... Rxc4 {[%clk
0:00:21.6]} 54. Rxd3 {[%clk 0:00:09.4]} 54... Kxd3 {[%clk 0:00:23.5]} 55. h5
{[%clk 0:00:10.5]} 55... Rxg4+ {[%clk 0:00:24]} 56. Kf7 {[%clk 0:00:11.2]} 56...
Rh4 {[%clk 0:00:22.1]} 57. Kg6 {[%clk 0:00:12]} 57... Ke4 {[%clk 0:00:23.3]} 58.
h6 {[%clk 0:00:13.5]} 58... Rg4+ {[%clk 0:00:24.7]} 59. Kf7 {[%clk 0:00:14.7]}
59... Rh4 {[%clk 0:00:21.2]} 60. Kg6 {[%clk 0:00:13.7]} 60... Rg4+ {[%clk
0:00:21.8]} 61. Kf6 {[%clk 0:00:15]} 61... Rf4+ {[%clk 0:00:21.4]} 62. Kg6
{[%clk 0:00:16]} 62... Ke5 {[%clk 0:00:19.7]} 63. h7 {[%clk 0:00:16.6]} 63...
Rg4+ {[%clk 0:00:15.6]} 64. Kf7 {[%clk 0:00:14.2]} 64... Rf4+ {[%clk 0:00:14.4]}
65. Kg7 {[%clk 0:00:15.1]} 65... Rg4+ {[%clk 0:00:14.1]} 66. Kf7 {[%clk
0:00:16.2]} 66... Rh4 {[%clk 0:00:14.4]} 67. Kg7 {[%clk 0:00:17.3]} 67... Rxh7+
{[%clk 0:00:14.3]} 68. Kxh7 {[%clk 0:00:18.9]} 1/2-1/2